bitfinex/quotes_BTCUSD_20250904
["timestamp","ask_amount","ask_price","bid_price","bid_amount"]
[1757029917189,1.52555161,110850.0,110840.0,1e-08]
[1757029918251,1.52555161,110850.0,110840.0,1e-08]
[1757029918476,1.52551161,110850.0,110840.0,1e-08]
[1757029918883,1.54937304,110850.0,110840.0,1e-08]
[1757029919104,1.52551161,110850.0,110840.0,1e-08]
[1757029919317,1.54937304,110850.0,110840.0,1e-08]
[1757029919530,1.00390531,110850.0,110840.0,0.00215001]
[1757029919752,1.32109801,110850.0,110840.0,0.00215001]
[1757029919969,1.47993801,110850.0,110840.0,0.00215001]
[1757029920184,1.48291801,110850.0,110840.0,0.00215001]
[1757029920398,1.56272254,110850.0,110840.0,0.00215001]
[1757029920742,1.56272254,110850.0,110840.0,1e-08]
[1757029922108,1.56272254,110850.0,110840.0,0.00215001]
[1757029923369,1.14275794,110850.0,110840.0,0.00215001]
[1757029923565,1.13977794,110850.0,110840.0,0.00215001]
[1757029923776,1.13965794,110850.0,110840.0,0.00215001]
[1757029924477,0.98109794,110850.0,110840.0,0.00215001]
[1757029924692,1.13957794,110850.0,110840.0,0.00215001]
[1757029924908,1.23145393,110850.0,110840.0,0.00215001]
[1757029925780,1.13953794,110850.0,110840.0,0.00215001]
[1757029926633,1.14470794,110850.0,110840.0,1e-08]
[1757029928372,1.14470794,110850.0,110840.0,0.00198001]
[1757029928588,1.14470794,110850.0,110840.0,1e-08]
[1757029929481,1.46190064,110850.0,110840.0,1e-08]
[1757029929705,1.23662393,110850.0,110840.0,1e-08]
[1757029930205,1.22247254,110850.0,110840.0,1e-08]
[1757029930421,1.87966524,110850.0,110840.0,1e-08]
[1757029931260,0.92808714,110850.0,110840.0,1e-08]
[1757029931462,1.90352667,110850.0,110840.0,1e-08]
[1757029931671,1.90975832,110850.0,110840.0,1e-08]
[1757029932106,1.91806733,110850.0,110840.0,1e-08]
[1757029932740,1.60087463,110850.0,110840.0,1e-08]
[1757029932947,1.59464298,110850.0,110840.0,1e-08]
[1757029933156,1.61502683,110850.0,110840.0,1e-08]
[1757029933360,1.93221953,110850.0,110840.0,1e-08]
[1757029933565,1.92391052,110850.0,110840.0,1e-08]
[1757029933805,1.93221942,110850.0,110840.0,1e-08]
[1757029939174,1.92391052,110850.0,110840.0,1e-08]
[1757029941827,1.76547052,110850.0,110840.0,1e-08]
[1757029942040,1.60843782,110850.0,110840.0,1e-08]
[1757029944840,1.60843659,110850.0,110840.0,1e-08]
[1757029945287,1.6022064,110850.0,110840.0,1e-08]
[1757029945701,1.60843705,110850.0,110840.0,1e-08]
[1757029946446,1.6022064,110850.0,110840.0,1e-08]
[1757029947701,1.60843752,110850.0,110840.0,1e-08]
[1757029949589,1.60843741,110850.0,110840.0,1e-08]
[1757029949801,1.59428498,110850.0,110840.0,1e-08]
[1757029950176,1.58805397,110850.0,110840.0,1e-08]
[1757029950792,1.59428511,110850.0,110840.0,1e-08]
[1757029951004,1.5942851,110850.0,110840.0,1e-08]
[1757029951553,1.91160812,110850.0,110840.0,1e-08]
[1757029952327,1.91160841,110850.0,110840.0,1e-08]
[1757029952527,1.75144841,110850.0,110840.0,1e-08]
[1757029952714,1.92476082,110850.0,110840.0,1e-08]
[1757029954603,1.99112343,110850.0,110840.0,1e-08]
[1757029954841,1.9848894,110850.0,110840.0,1e-08]
[1757029955376,1.99112428,110850.0,110840.0,1e-08]
[1757029957318,1.83212428,110850.0,110840.0,1e-08]
[1757029957538,1.99096428,110850.0,110840.0,1e-08]
[1757029957745,1.04770584,110850.0,110840.0,0.00357001]
[1757029957949,1.12579343,110850.0,110840.0,0.00357001]
[1757029958291,1.12579343,110850.0,110840.0,0.00210001]
[1757029959387,0.96703343,110850.0,110840.0,0.00210001]
[1757029959628,0.5578813,110850.0,110840.0,0.00357001]
[1757029959833,0.53879215,110850.0,110840.0,0.00357001]
[1757029960045,0.53879215,110850.0,110840.0,0.02692001]
[1757029960300,0.51166013,110850.0,110840.0,0.02692001]
[1757029961840,0.51166013,110850.0,110840.0,0.02917551]
[1757029962810,0.49766013,110850.0,110840.0,0.02917551]
[1757029963014,0.50066013,110850.0,110840.0,0.02917551]
[1757029963423,0.50366013,110850.0,110840.0,0.02917551]
[1757029963628,0.50066013,110850.0,110840.0,0.02917551]
[1757029963810,0.50266013,110850.0,110840.0,0.02917551]
[1757029964248,0.18242399,110850.0,110840.0,0.20961578]
[1757029964467,0.49966013,110850.0,110840.0,0.20736028]
[1757029964642,0.50066013,110850.0,110840.0,0.20836028]
[1757029965284,0.50066013,110850.0,110840.0,0.02792001]
[1757029966797,0.18342399,110850.0,110840.0,0.02792001]
[1757029967209,0.50066013,110850.0,110840.0,0.02792001]
[1757029968388,0.18342399,110850.0,110840.0,0.02792001]
[1757029968594,0.50066013,110850.0,110840.0,0.21061578]
[1757029968798,0.50066013,110850.0,110840.0,0.20836028]
[1757029969202,0.18342399,110850.0,110840.0,0.20836028]
[1757029969385,0.50066013,110850.0,110840.0,0.20836028]
[1757029969995,0.50066013,110850.0,110840.0,0.02792001]
[1757029970198,0.50066013,110850.0,110840.0,0.00310001]
[1757029973141,0.18342399,110850.0,110840.0,0.00310001]
[1757029973350,0.50066013,110850.0,110840.0,0.00310001]
[1757029975498,0.98054627,110850.0,110840.0,0.00100001]
[1757029975982,1.07246226,110850.0,110840.0,0.00100001]
[1757029976194,1.09959154,110850.0,110840.0,0.00100001]
[1757029978509,1.41682768,110850.0,110840.0,0.00100001]
[1757029978724,1.50874367,110850.0,110840.0,0.00100001]
[1757029979753,1.19150753,110850.0,110840.0,0.00100001]
[1757029980399,0.89703525,110850.0,110840.0,0.00100001]
[1757029980620,1.53150753,110850.0,110840.0,0.00100001]
[1757029980837,0.89703525,110850.0,110840.0,0.00100001]
[1757029981084,0.80603926,110850.0,110840.0,0.00100001]
[1757029981317,1.44051154,110850.0,110840.0,0.00100001]
[1757029983488,0.80663926,110850.0,110840.0,0.00100001]
[1757029983714,1.44107154,110850.0,110840.0,0.00100001]
[1757029984336,1.46020121,110850.0,110840.0,0.00100001]
[1757029985399,0.30759926,110850.0,110840.0,0.00100001]
[1757029985614,0.46433926,110850.0,110840.0,0.00310001]
[1757029985828,0.7816554,110850.0,110840.0,0.00310001]
[1757029986861,0.30246926,110850.0,110840.0,0.00310001]
[1757029987062,0.6227754,110850.0,110840.0,0.00310001]
[1757029987478,0.30246926,110850.0,110840.0,0.00310001]
[1757029987686,0.7788254,110850.0,110840.0,0.00310001]
[1757029988393,0.46158926,110850.0,110840.0,0.00310001]
[1757029988605,0.7788254,110850.0,110840.0,0.00310001]
[1757029989370,0.46465926,110850.0,110840.0,0.00310001]
[1757029989609,0.7818954,110850.0,110840.0,0.00310001]
[1757029990034,0.46465926,110850.0,110840.0,0.00310001]
[1757029990281,0.7818954,110850.0,110840.0,0.00310001]
[1757029990754,0.7840154,110850.0,110840.0,0.00310001]
[1757029990957,0.7840154,110850.0,110840.0,0.00100001]
[1757029991350,0.46677926,110850.0,110840.0,0.00100001]
[1757029991575,0.7840154,110850.0,110840.0,0.00100001]
[1757029992604,0.69209941,110850.0,110840.0,0.00100001]
[1757029992810,0.37486327,110850.0,110840.0,0.00309001]
[1757029993016,0.69209941,110850.0,110840.0,0.00309001]
[1757029994127,0.53297941,110850.0,110840.0,0.00309001]
[1757029995419,0.53297941,110850.0,110840.0,0.00100001]
[1757029995789,0.53297941,110850.0,110840.0,0.00309001]
[1757029996265,0.53085941,110850.0,110840.0,0.00309001]
[1757029996461,0.68638941,110850.0,110840.0,0.00309001]
[1757029996894,0.68945941,110850.0,110840.0,0.00309001]
[1757029997248,0.69157941,110850.0,110840.0,0.00309001]
[1757029998214,0.53297941,110850.0,110840.0,0.00309001]
[1757029999920,0.37402327,110850.0,110840.0,0.00309001]
[1757030000126,0.53297941,110850.0,110840.0,0.00309001]
[1757030000752,0.53297941,110850.0,110840.0,0.00100001]
[1757030001163,0.21055327,110850.0,110840.0,0.00309001]
[1757030001372,0.50066013,110850.0,110840.0,0.00309001]
[1757030002377,0.50066013,110850.0,110840.0,0.00534551]
[1757030006323,0.50373013,110850.0,110840.0,0.00534551]
[1757030006927,0.50585013,110850.0,110840.0,0.00309001]
[1757030008961,0.50373013,110850.0,110840.0,0.00309001]
[1757030009171,0.50373013,110850.0,110840.0,0.00534551]
[1757030009370,0.18342399,110850.0,110840.0,0.18578578]
[1757030009600,0.18342399,110850.0,110840.0,0.18353028]
[1757030010644,0.18342399,110850.0,110840.0,0.19264429]
[1757030011037,0.18342399,110850.0,110840.0,0.18353028]
[1757030014022,0.18649399,110850.0,110840.0,0.18353028]
[1757030014442,0.18861399,110850.0,110840.0,0.00100001]
[1757030014654,0.18861399,110850.0,110840.0,0.15816001]
[1757030015484,0.18861399,110850.0,110840.0,0.00100001]
[1757030015687,0.18861399,110850.0,110840.0,0.15812001]
[1757030016363,0.18861399,110850.0,110840.0,0.15388425]
[1757030017996,0.003,110850.0,110840.0,1.08681883]
[1757030018205,0.003,110850.0,110840.0,0.79076933]
[1757030018421,0.003,110850.0,110840.0,1.13487776]
[1757030019264,0.003,110850.0,110840.0,1.13795351]
[1757030019490,0.003,110850.0,110840.0,1.1108334]
[1757030019732,0.001,110850.0,110840.0,1.1108334]
[1757030019954,0.18349191,110870.0,110850.0,0.51941152]
[1757030020164,0.18349191,110870.0,110860.0,0.15921509]
[1757030020369,0.18349191,110870.0,110860.0,0.15696]
[1757030020579,0.18557191,110870.0,110860.0,0.15921509]
[1757030021087,0.18857191,110870.0,110860.0,0.15921509]
[1757030021540,0.18557191,110870.0,110860.0,0.15921509]
[1757030021776,0.18957191,110870.0,110860.0,0.15921509]
[1757030022012,0.003,110870.0,110860.0,1.09064712]
[1757030022227,0.007,110870.0,110860.0,0.93390203]
[1757030022440,0.007,110870.0,110860.0,0.77224371]
[1757030026734,0.0101,110870.0,110860.0,0.77224371]
[1757030028061,0.19049144,110870.0,110860.0,0.77220371]
[1757030028267,0.19257144,110870.0,110860.0,0.77220371]
[1757030028468,0.01218,110870.0,110860.0,0.77220371]
[1757030030188,0.50955976,110870.0,110860.0,0.341]
[1757030030408,0.50955976,110870.0,110860.0,0.49776]
[1757030031077,0.50955976,110870.0,110860.0,0.15776]
[1757030036548,0.19257144,110870.0,110860.0,0.15776]
[1757030036774,0.50955976,110870.0,110860.0,0.15776]
[1757030038128,0.19257144,110870.0,110860.0,0.15776]
[1757030038340,0.18739144,110870.0,110860.0,0.16213509]
[1757030039605,0.007,110870.0,110860.0,0.4344588]
[1757030039819,0.007,110870.0,110860.0,1.09066203]
[1757030040458,0.007,110870.0,110860.0,1.11160085]
[1757030040888,0.18739144,110870.0,110860.0,0.45597481]
[1757030041102,0.19257144,110870.0,110860.0,0.45597481]
[1757030041326,0.19257144,110870.0,110860.0,0.49772]
[1757030041953,0.50955976,110870.0,110860.0,0.15772]
[1757030042391,0.50955976,110870.0,110860.0,0.001]
[1757030042519,0.50955976,110870.0,110860.0,0.15772]
[1757030042940,0.19257144,110870.0,110860.0,0.15772]
[1757030043156,0.50955976,110870.0,110860.0,0.15772]
[1757030047352,0.50955976,110870.0,110860.0,0.15997509]
[1757030048574,0.50955976,110870.0,110860.0,0.15772]
[1757030049264,0.50955976,110870.0,110860.0,0.1598]
[1757030049696,0.50955976,110870.0,110860.0,0.16205509]
[1757030050349,0.50955976,110870.0,110860.0,0.1598]
[1757030050707,0.50955976,110870.0,110860.0,0.15772]
[1757030053671,0.50955976,110870.0,110860.0,0.15997509]
[1757030053882,0.50955976,110870.0,110860.0,0.16205509]
[1757030054114,0.19257144,110870.0,110860.0,0.16205509]
[1757030054327,0.50955976,110870.0,110860.0,0.34246281]
[1757030054544,0.50955976,110870.0,110860.0,0.34020772]
[1757030055406,0.18739144,110870.0,110860.0,0.1598]
[1757030056327,0.19033144,110870.0,110860.0,0.1598]
[1757030056510,0.19248144,110870.0,110860.0,0.1598]
[1757030058184,0.50946976,110870.0,110860.0,0.1598]
[1757030062175,0.50946976,110870.0,110860.0,0.15772]
[1757030064478,0.19248144,110870.0,110860.0,0.1598]
[1757030065333,0.007,110870.0,110860.0,0.79678762]
[1757030065537,0.007,110870.0,110860.0,0.79453253]
[1757030069254,0.007,110870.0,110860.0,0.79306253]
[1757030071410,0.007,110870.0,110860.0,1.11152085]
[1757030071663,0.004,110870.0,110860.0,1.11152085]
[1757030072052,0.00294,110880.0,110870.0,0.17793457]
[1757030072297,0.18941944,110890.0,110870.0,0.27210545]
[1757030072510,0.00294,110890.0,110880.0,0.73262933]
[1757030072951,0.00294,110890.0,110880.0,0.74173324]
[1757030073165,0.18329891,110890.0,110880.0,0.74173324]
[1757030073375,0.18329891,110890.0,110880.0,0.74073324]
[1757030073590,0.50204659,110890.0,110880.0,0.74073324]
[1757030073821,0.50004659,110890.0,110880.0,0.74073324]
[1757030074028,0.31968768,110890.0,110880.0,0.74073324]
[1757030074236,0.50004659,110890.0,110880.0,0.74173324]
[1757030074441,0.18329891,110890.0,110880.0,0.74173324]
[1757030074645,0.50219659,110890.0,110880.0,0.74173324]
[1757030075154,0.50319659,110890.0,110880.0,0.74373324]
[1757030075485,0.50319659,110890.0,110880.0,0.58717324]
[1757030075707,0.50319659,110890.0,110880.0,0.40948]
[1757030075919,0.50319659,110890.0,110880.0,0.566]
[1757030076141,0.50319659,110890.0,110880.0,0.06948]
[1757030076394,0.50319659,110890.0,110880.0,0.226]
[1757030076607,0.81994427,110890.0,110880.0,0.226]
[1757030077034,0.50319659,110890.0,110880.0,0.226]
[1757030079444,0.50319659,110890.0,110880.0,0.06948]
[1757030079604,0.50319659,110890.0,110880.0,0.22596]
[1757030081135,0.18644891,110890.0,110880.0,0.22596]
[1757030081353,0.50319659,110890.0,110880.0,0.22596]
[1757030086605,0.50319659,110890.0,110880.0,0.06948]
[1757030086810,0.50319659,110890.0,110880.0,0.22592]
[1757030087432,0.001,110890.0,110880.0,0.72509286]
[1757030087941,0.001,110890.0,110880.0,0.40834518]
[1757030088778,0.001,110890.0,110880.0,0.72509286]
[1757030088981,0.001,110890.0,110880.0,0.40834518]
[1757030089750,0.001,110890.0,110880.0,1.17941767]
[1757030090161,0.001,110890.0,110880.0,0.86266999]
[1757030090443,0.001,110890.0,110880.0,1.17941767]
[1757030090647,0.001,110890.0,110880.0,1.17932267]
[1757030092527,0.001,110890.0,110880.0,1.17785267]
[1757030093087,0.001,110890.0,110880.0,1.21914809]
[1757030093973,0.001,110890.0,110880.0,0.90240041]
[1757030094358,0.001,110890.0,110880.0,1.21910809]
[1757030095829,0.001,110890.0,110880.0,0.90236041]
[1757030096039,0.001,110890.0,110880.0,1.21910809]
[1757030096644,0.001,110890.0,110880.0,0.90236041]
[1757030096887,0.001,110890.0,110880.0,1.21910809]
[1757030098727,0.001,110890.0,110880.0,1.22057809]
[1757030098941,0.001,110890.0,110880.0,1.92682345]
[1757030099146,0.001,110890.0,110880.0,2.00392765]
[1757030099780,0.001,110890.0,110880.0,2.00292765]
[1757030099984,0.001,110890.0,110880.0,2.00492765]
[1757030100390,0.002,110890.0,110880.0,2.01092765]
[1757030105234,0.002,110890.0,110880.0,1.53777997]
[1757030105446,0.002,110890.0,110880.0,1.69405997]
[1757030107472,0.002,110890.0,110880.0,1.53777997]
[1757030107680,0.002,110890.0,110880.0,1.69401997]
[1757030108098,0.002,110890.0,110880.0,2.01076765]
[1757030108306,0.002,110890.0,110880.0,1.69401997]
[1757030108511,0.002,110890.0,110880.0,2.01076765]
[1757030110182,0.002,110890.0,110880.0,1.69401997]
[1757030112734,0.002,110890.0,110880.0,1.53777997]
[1757030112945,0.002,110890.0,110880.0,1.66975997]
[1757030113382,0.002,110890.0,110880.0,1.67122997]
[1757030113864,0.002,110890.0,110880.0,1.93672997]
[1757030115281,0.002,110890.0,110880.0,2.27748765]
[1757030117297,1e-08,110890.0,110880.0,2.10707765]
[1757030120332,0.07354631,110930.0,110920.0,0.18031013]
[1757030120569,0.07354631,110930.0,110920.0,1.17456262]
[1757030120936,0.00503,110930.0,110920.0,1.2016629]
[1757030121147,0.00503,110930.0,110920.0,1.51841058]
[1757030121366,0.00503,110930.0,110920.0,1.51941058]
[1757030121367,0.00603,110930.0,110920.0,1.51941058]
[1757030121566,0.00395,110930.0,110920.0,1.51941058]
[1757030121772,0.002,110930.0,110920.0,1.5282619]
[1757030122361,0.002,110930.0,110920.0,1.56961555]
[1757030122911,0.00495,110930.0,110920.0,1.56961555]
[1757030125575,0.002,110930.0,110920.0,1.56961555]
[1757030126432,0.002,110930.0,110920.0,1.57108555]
[1757030126827,0.002,110930.0,110920.0,1.56961555]
[1757030130205,0.002,110930.0,110920.0,1.57108555]
[1757030130636,0.002,110930.0,110920.0,1.41349555]
[1757030130848,0.002,110930.0,110920.0,1.56949555]
[1757030131060,0.001,110930.0,110920.0,1.56949555]
[1757030131279,0.00295,110940.0,110930.0,0.20123269]
[1757030131466,0.00295,110940.0,110930.0,0.76589636]
[1757030131699,0.00503,110940.0,110930.0,0.76489636]
[1757030131896,0.00503,110940.0,110930.0,0.79199419]
[1757030132098,0.00503,110940.0,110930.0,0.79099419]
[1757030132672,0.00503,110940.0,110930.0,0.78999419]
[1757030133520,0.00603,110940.0,110930.0,0.79199419]
[1757030133865,0.00703,110940.0,110930.0,0.79499419]
[1757030134201,0.002,110940.0,110930.0,0.79708419]
[1757030134420,0.002,110940.0,110930.0,1.45530187]
[1757030134633,0.002,110940.0,110930.0,1.13855419]
[1757030135061,0.002,110940.0,110930.0,1.13708419]
[1757030135715,0.002,110940.0,110930.0,1.13667827]
[1757030138856,0.002,110940.0,110930.0,1.13814827]
[1757030139533,0.002,110940.0,110930.0,0.98214827]
[1757030139745,0.00714,110940.0,110930.0,0.66433651]
[1757030139958,0.00714,110940.0,110930.0,0.81812651]
[1757030140454,0.00714,110940.0,110930.0,0.64130769]
[1757030140660,0.00714,110940.0,110930.0,0.79718769]
[1757030140875,0.00714,110940.0,110930.0,0.81812651]
[1757030141111,0.00714,110940.0,110930.0,0.66224651]
[1757030141318,0.00714,110940.0,110930.0,0.81812651]
[1757030144601,0.50375938,110940.0,110930.0,0.48495264]
[1757030144765,0.50375938,110940.0,110930.0,0.59271599]
[1757030144966,0.18741762,110940.0,110930.0,0.59271599]
[1757030145223,0.50375938,110940.0,110930.0,0.59271599]
[1757030145441,0.50375938,110940.0,110930.0,0.43691599]
[1757030145644,0.50375938,110940.0,110930.0,0.59271599]
[1757030146396,0.18741762,110940.0,110930.0,0.77300986]
[1757030146615,0.32348176,110940.0,110930.0,0.77300986]
[1757030148114,0.50375938,110940.0,110930.0,0.77300986]
[1757030154770,0.50375938,110940.0,110930.0,0.61720986]
[1757030155076,0.50375938,110940.0,110930.0,0.77292986]
[1757030155508,0.50375938,110940.0,110930.0,0.59263599]
[1757030155929,0.50375938,110940.0,110930.0,0.345]
[1757030156150,0.50375938,110940.0,110930.0,0.50072]
[1757030156361,0.82010114,110940.0,110930.0,0.005]
[1757030156605,0.82010114,110940.0,110930.0,0.16072]
[1757030156834,0.82010114,110940.0,110930.0,0.005]
[1757030157051,0.82010114,110940.0,110930.0,0.16068]
[1757030157511,0.84720629,110940.0,110930.0,0.16068]
[1757030160046,1.00288629,110940.0,110930.0,0.16068]
[1757030160271,0.84720629,110940.0,110930.0,0.16068]
[1757030161100,0.85613912,110940.0,110930.0,0.16068]
[1757030161315,0.2234556,110940.0,110930.0,0.16068]
[1757030161523,0.85613912,110940.0,110930.0,0.16068]
[1757030162865,0.85613912,110940.0,110930.0,0.15868]
[1757030163085,0.85513912,110940.0,110930.0,0.15868]
[1757030163295,0.85513912,110940.0,110930.0,0.003]
[1757030163499,0.3781356,110940.0,110930.0,0.003]
[1757030163711,0.18029387,110930.0,110920.0,0.22212]
[1757030163937,0.50277573,110930.0,110920.0,0.22212]
[1757030164150,0.50177563,110930.0,110920.0,0.22212]
[1757030165068,0.50277563,110930.0,110920.0,0.22612]
[1757030165493,0.50377563,110930.0,110920.0,0.22812]
[1757030166031,0.50377563,110930.0,110920.0,0.006]
[1757030166444,0.53088295,110930.0,110920.0,0.006]
[1757030167885,0.52988295,110930.0,110920.0,0.002]
[1757030168121,0.18031013,110920.0,110910.0,0.15564]
[1757030168334,0.50075199,110920.0,110910.0,0.15564]
[1757030168543,0.50180189,110920.0,110910.0,0.15564]
[1757030169286,0.50280189,110920.0,110910.0,0.15864]
[1757030170108,0.50380189,110920.0,110910.0,0.16264]
[1757030170903,0.18746013,110920.0,110910.0,0.16264]
[1757030171103,0.50380189,110920.0,110910.0,0.16264]
[1757030175453,0.53091092,110920.0,110910.0,0.16264]
[1757030176160,0.53091092,110920.0,110910.0,0.16264]
[1757030179789,0.93916867,110920.0,110910.0,0.007]
[1757030181368,0.18032639,110910.0,110900.0,0.13821336]
[1757030181578,0.81300991,110910.0,110900.0,0.13821336]
[1757030181794,0.81815991,110910.0,110900.0,0.13821336]
[1757030182400,0.82726755,110910.0,110900.0,0.13821336]
[1757030182551,0.82826755,110910.0,110900.0,0.14221336]
[1757030183568,0.82826755,110910.0,110900.0,0.004]
[1757030183781,0.82926755,110910.0,110900.0,0.008]
[1757030185971,0.82015991,110910.0,110900.0,0.008]
[1757030186235,0.18747639,110910.0,110900.0,0.008]
[1757030186448,0.82015991,110910.0,110900.0,0.008]
[1757030190075,0.84627242,110910.0,110900.0,0.004]
[1757030190284,0.84727242,110910.0,110900.0,0.006]
[1757030190488,0.84627242,110910.0,110900.0,0.002]
[1757030190709,0.84727242,110910.0,110900.0,0.004]
[1757030191973,1.0311044,110910.0,110900.0,0.004]
[1757030193021,1.1866244,110910.0,110900.0,0.004]
[1757030193440,1.09470841,110910.0,110900.0,0.004]
[1757030194075,0.18037518,110880.0,110870.0,0.49548]
[1757030194286,0.49671694,110880.0,110870.0,0.58947599]
[1757030194487,0.49671694,110880.0,110870.0,0.59868705]
[1757030194898,0.49671694,110880.0,110870.0,0.60015705]
[1757030195102,0.18037518,110880.0,110870.0,0.60015705]
[1757030195369,0.49671694,110880.0,110870.0,0.59094599]
[1757030196300,0.49771694,110880.0,110870.0,0.59094599]
[1757030196874,0.49771694,110880.0,110870.0,0.58947599]
[1757030197084,0.49971694,110880.0,110870.0,0.59347599]
[1757030197528,0.8170577,110880.0,110870.0,0.59347599]
[1757030199221,0.8224277,110880.0,110870.0,0.344]
[1757030199430,0.8224277,110880.0,110870.0,0.50159]
[1757030200278,0.8224277,110880.0,110870.0,0.49948]
[1757030200487,0.8224277,110880.0,110870.0,0.50159]
[1757030201481,0.8170577,110880.0,110870.0,0.50159]
[1757030201697,0.8202677,110880.0,110870.0,0.50159]
[1757030202084,0.8224277,110880.0,110870.0,0.50159]
[1757030202296,0.18874518,110880.0,110870.0,0.50159]
[1757030202520,0.8224277,110880.0,110870.0,0.50159]
[1757030203811,0.8224277,110880.0,110870.0,0.49948]
[1757030204830,0.8224277,110880.0,110870.0,0.15948]
[1757030205882,0.8224277,110880.0,110870.0,0.004]
[1757030206296,0.8224277,110880.0,110870.0,0.15944]
[1757030207193,0.8214277,110880.0,110870.0,0.15944]
[1757030207423,0.8194277,110880.0,110870.0,0.15544]
[1757030207631,0.8214277,110880.0,110870.0,0.15944]
[1757030208625,0.18674518,110880.0,110870.0,0.004]
[1757030208831,0.9758677,110880.0,110870.0,0.004]
[1757030209244,0.98492379,110880.0,110870.0,0.004]
[1757030209471,0.98592379,110880.0,110870.0,0.004]
[1757030210171,0.98592379,110880.0,110870.0,0.00385344]
[1757030214276,0.35224127,110880.0,110870.0,0.00385344]
[1757030214484,0.8214277,110880.0,110870.0,0.00385344]
[1757030215264,0.8214277,110880.0,110870.0,0.00596344]
[1757030215265,0.18774518,110880.0,110870.0,0.00596344]
[1757030215497,0.84317665,110880.0,110870.0,0.00596344]
[1757030215828,0.8160577,110880.0,110870.0,0.00596344]
[1757030216044,0.8192677,110880.0,110870.0,0.00596344]
[1757030216763,0.8214277,110880.0,110870.0,0.00596344]
[1757030219264,0.8214277,110880.0,110870.0,0.00385344]
[1757030219912,1.29362896,110880.0,110870.0,0.00385344]
[1757030222599,1.3207484,110880.0,110870.0,0.00385344]
[1757030225527,1.00390714,110880.0,110870.0,0.00385344]
[1757030226176,0.37022462,110880.0,110870.0,0.00385344]
[1757030226420,1.3207484,110880.0,110870.0,0.00385344]
[1757030228538,1.1653884,110880.0,110870.0,0.00385344]
[1757030228716,0.84317714,110880.0,110870.0,0.00600344]
[1757030228877,0.99849714,110880.0,110870.0,0.00600344]
[1757030229231,1.00360714,110880.0,110870.0,0.00600344]
[1757030229654,1.00360714,110880.0,110870.0,0.00385344]
[1757030229864,0.20949462,110880.0,110870.0,0.00600344]
[1757030230074,0.52633588,110880.0,110870.0,0.00600344]
[1757030230313,0.3459607,110880.0,110870.0,0.34171488]
[1757030230528,0.002,110880.0,110870.0,0.74966488]
[1757030230740,0.31884126,110880.0,110870.0,0.74966488]
[1757030232286,0.002,110880.0,110870.0,0.74966488]
[1757030232492,0.31884126,110880.0,110870.0,0.84158087]
[1757030232699,0.002,110880.0,110870.0,0.84158087]
[1757030233374,0.31884126,110880.0,110870.0,0.84158087]
[1757030235176,0.002,110880.0,110870.0,0.84158087]
[1757030235316,0.31884126,110880.0,110870.0,0.84158087]
[1757030235950,0.002,110880.0,110870.0,0.84158087]
[1757030236154,0.31884126,110880.0,110870.0,0.84158087]
[1757030238489,0.002,110880.0,110870.0,0.84158087]
[1757030238633,0.002,110880.0,110870.0,0.68626087]
[1757030238836,0.002,110880.0,110870.0,0.84150087]
[1757030241072,0.31884126,110880.0,110870.0,0.68626087]
[1757030241281,0.31884126,110880.0,110870.0,0.83999087]
[1757030241487,0.31884126,110880.0,110870.0,0.84146087]
[1757030242318,0.002,110880.0,110870.0,0.84146087]
[1757030242740,0.31884126,110880.0,110870.0,0.84146087]
[1757030243473,0.31884126,110880.0,110870.0,0.68626087]
[1757030243681,0.31884126,110880.0,110870.0,0.84146087]
[1757030243898,0.002,110880.0,110870.0,0.84146087]
[1757030244257,0.002,110880.0,110870.0,0.83999087]
[1757030245101,0.002,110880.0,110870.0,0.83995087]
[1757030245317,0.31884126,110880.0,110870.0,0.83995087]
[1757030246446,0.002,110880.0,110870.0,0.84892003]
[1757030246656,0.31884126,110880.0,110870.0,0.84892003]
[1757030248026,0.002,110880.0,110870.0,0.84892003]
[1757030248268,0.31884126,110880.0,110870.0,0.84892003]
[1757030250613,0.32195126,110880.0,110870.0,0.84892003]
[1757030251012,0.31884126,110880.0,110870.0,0.84892003]
[1757030252136,0.002,110880.0,110870.0,0.84892003]
[1757030252347,0.31884126,110880.0,110870.0,0.84892003]
[1757030255468,0.002,110880.0,110870.0,0.84892003]
[1757030255673,0.31884126,110880.0,110870.0,0.84892003]
[1757030256532,0.32413126,110880.0,110870.0,0.69376003]
[1757030256713,0.32413126,110880.0,110870.0,0.84669003]
[1757030257529,0.32410082,110880.0,110870.0,0.84669003]
[1757030259319,0.00729,110880.0,110870.0,0.84669003]
[1757030259617,0.32410082,110880.0,110870.0,0.84669003]
[1757030259959,0.32410082,110880.0,110870.0,0.69161003]
[1757030260169,0.504476,110880.0,110870.0,0.84665003]
[1757030260586,0.32410082,110880.0,110870.0,0.84665003]
[1757030263878,0.32410082,110880.0,110870.0,0.84861003]
[1757030266072,0.00729,110880.0,110870.0,0.84861003]
[1757030266280,0.32410082,110880.0,110870.0,0.84861003]
[1757030266942,0.00729,110880.0,110870.0,0.84861003]
[1757030267121,0.32410082,110880.0,110870.0,0.84861003]
[1757030268582,0.00729,110880.0,110870.0,0.84665003]
[1757030268788,0.32410082,110880.0,110870.0,0.84665003]
[1757030268992,0.00729,110880.0,110870.0,0.84665003]
[1757030269221,0.32410082,110880.0,110870.0,0.84861003]
[1757030270914,0.31881082,110880.0,110870.0,0.84861003]
[1757030271934,0.34592391,110880.0,110870.0,0.84861003]
[1757030272748,0.31881082,110880.0,110870.0,0.84861003]
[1757030272972,0.32199082,110880.0,110870.0,0.84861003]
[1757030273573,0.002,110880.0,110870.0,0.84861003]
[1757030273779,0.31881082,110880.0,110870.0,0.84861003]
[1757030274097,0.32410082,110880.0,110870.0,0.84861003]
[1757030275159,0.32199082,110880.0,110870.0,0.84861003]
[1757030275578,0.31881082,110880.0,110870.0,0.84861003]
[1757030277256,0.002,110880.0,110870.0,0.84861003]
[1757030280135,0.00518,110880.0,110870.0,0.84861003]
[1757030280913,0.002,110880.0,110870.0,0.84861003]
[1757030282458,0.00518,110880.0,110870.0,0.84861003]
[1757030283559,0.002,110880.0,110870.0,0.84861003]
[1757030284319,0.00518,110880.0,110870.0,0.84861003]
[1757030284860,0.002,110880.0,110870.0,0.84861003]
[1757030285945,0.00519,110880.0,110870.0,0.84861003]
[1757030287607,0.002,110880.0,110870.0,0.84861003]
[1757030291466,0.002,110880.0,110870.0,1.18635967]
[1757030291665,0.002,110880.0,110870.0,1.18782967]
[1757030291869,0.002,110880.0,110870.0,1.21493963]
[1757030293138,0.002,110880.0,110870.0,1.26493963]